[Event "*** Monthly 3|2 Blitz Masters"]
[Site "Chess.com"]
[Date "2014.10.28"]
[Round "5"]
[White "XeresLt"]
[Black "marabu44"]
[Result "1-0"]
[WhiteElo "2279"]
[BlackElo "2215"]
[TimeControl "180+2"]
[EndTime "12:53:58 PDT"]
[Termination "XeresLt won by resignation"]

1. e4 {[%clk 0:02:59.8]} 1... e6 {[%clk 0:02:58.4]} 2. d4 {[%clk 0:02:59.6]}
2... d5 {[%clk 0:02:59.3]} 3. Nc3 {[%clk 0:03:01.2]} 3... Bb4 {[%clk 0:02:59.5]}
4. e5 {[%clk 0:03:01.7]} 4... c5 {[%clk 0:03:00.3]} 5. a3 {[%clk 0:03:03]} 5...
Bxc3+ {[%clk 0:03:01.1]} 6. bxc3 {[%clk 0:03:04.3]} 6... Ne7 {[%clk 0:03:02.3]}
7. Bd3 {[%clk 0:03:02.2]} 7... b6 {[%clk 0:02:58.4]} 8. Qg4 {[%clk 0:02:54.4]}
8... Ng6 {[%clk 0:02:55.8]} 9. h4 {[%clk 0:02:52.4]} 9... c4 {[%clk 0:02:36.9]}
10. Be2 {[%clk 0:02:48.8]} 10... Rg8 {[%clk 0:02:22.4]} 11. h5 {[%clk
0:02:43.9]} 11... Nf8 {[%clk 0:02:20.6]} 12. Nh3 {[%clk 0:02:42.7]} 12... h6
{[%clk 0:02:18]} 13. Bxh6 {[%clk 0:02:41.7]} 13... Nc6 {[%clk 0:01:34]} 14. Bxg7
{[%clk 0:02:35.2]} 14... Ne7 {[%clk 0:01:27.1]} 15. h6 {[%clk 0:02:25.5]} 15...
Nf5 {[%clk 0:01:26]} 16. Nf4 {[%clk 0:01:56.7]} 16... Nh7 {[%clk 0:01:17]} 17.
Rh5 {[%clk 0:01:50]} 17... Bd7 {[%clk 0:00:53.6]} 18. Bf3 {[%clk 0:01:41.5]}
18... Qe7 {[%clk 0:00:45.5]} 19. Kd2 {[%clk 0:00:58.7]} 19... O-O-O {[%clk
0:00:43.3]} 20. a4 {[%clk 0:00:56.4]} 20... Kb8 {[%clk 0:00:30.5]} 21. a5 {[%clk
0:00:55.4]} 21... b5 {[%clk 0:00:27.2]} 22. Be2 {[%clk 0:00:41.6]} 22... a6
{[%clk 0:00:22.9]} 23. Qh3 {[%clk 0:00:30.4]} 23... Nxg7 {[%clk 0:00:17.9]} 24.
hxg7 {[%clk 0:00:30.5]} 24... Ng5 {[%clk 0:00:18.8]} 25. Qh4 {[%clk 0:00:31]}
25... Ne4+ {[%clk 0:00:19.7]} 26. Ke3 {[%clk 0:00:30.1]} 26... Qxh4 {[%clk
0:00:19]} 27. Rxh4 {[%clk 0:00:31.4]} 27... Rxg7 {[%clk 0:00:20.4]} 28. Ra3
{[%clk 0:00:29]} 28... Rdg8 {[%clk 0:00:15.4]} 29. f3 {[%clk 0:00:27.9]} 29...
Ng3 {[%clk 0:00:15.4]} 30. Kf2 {[%clk 0:00:26.3]} 30... Nxe2 {[%clk 0:00:14.9]}
31. Kxe2 {[%clk 0:00:26.8]} 31... Kc7 {[%clk 0:00:13.8]} 32. Kf2 {[%clk
0:00:27.9]} 32... Kd8 {[%clk 0:00:10]} 33. g4 {[%clk 0:00:29]} 33... Ke7 {[%clk
0:00:06.6]} 34. Ra1 {[%clk 0:00:29.9]} 34... Rb8 {[%clk 0:00:06.8]} 35. Rb1
{[%clk 0:00:30.4]} 35... Rc8 {[%clk 0:00:07.2]} 36. Ke3 {[%clk 0:00:31.4]} 36...
Rgg8 {[%clk 0:00:07.5]} 37. Rh7 {[%clk 0:00:31.8]} 37... Rh8 {[%clk 0:00:08.3]}
38. Rbh1 {[%clk 0:00:31.9]} 38... Rxh7 {[%clk 0:00:09.5]} 39. Rxh7 {[%clk
0:00:32.9]} 39... Be8 {[%clk 0:00:10.9]} 40. g5 {[%clk 0:00:30.9]} 40... Kf8
{[%clk 0:00:09.3]} 41. Nh5 {[%clk 0:00:26.5]} 41... Rb8 {[%clk 0:00:07.9]} 42.
Rh8+ {[%clk 0:00:26.7]} 42... Ke7 {[%clk 0:00:08.3]} 43. Nf6 {[%clk 0:00:27.9]}
43... Rc8 {[%clk 0:00:08.2]} 44. f4 {[%clk 0:00:27.6]} 44... Rb8 {[%clk
0:00:09.2]} 45. Kf3 {[%clk 0:00:28.3]} 45... Rc8 {[%clk 0:00:09.8]} 46. Kg4
{[%clk 0:00:29.5]} 46... Rb8 {[%clk 0:00:10.3]} 47. Kh5 {[%clk 0:00:30.1]} 47...
Ra8 {[%clk 0:00:09.1]} 48. Kh6 {[%clk 0:00:31]} 48... Bc6 {[%clk 0:00:10.4]} 49.
Rxa8 {[%clk 0:00:30.8]} 49... Bxa8 {[%clk 0:00:11.2]} 50. Kg7 {[%clk 0:00:32.2]}
50... b4 {[%clk 0:00:11.9]} 51. cxb4 {[%clk 0:00:32.7]} 51... c3 {[%clk
0:00:13.5]} 52. Ng4 {[%clk 0:00:31.7]} 52... Bc6 {[%clk 0:00:14.4]} 53. Ne3
{[%clk 0:00:31.9]} 53... Ba4 {[%clk 0:00:15.4]} 54. Nd1 {[%clk 0:00:33]} 54...
Bxc2 {[%clk 0:00:15.7]} 55. Nxc3 {[%clk 0:00:34.3]} 55... Bd3 {[%clk 0:00:17.4]}
56. Na4 {[%clk 0:00:32]} 56... Ke8 {[%clk 0:00:18.2]} 57. Nc5 {[%clk 0:00:31.8]}
57... Ke7 {[%clk 0:00:18.1]} 58. Nb7 {[%clk 0:00:32.7]} 58... Be2 {[%clk
0:00:18.6]} 59. Nd6 {[%clk 0:00:33.3]} 59... Bh5 {[%clk 0:00:18.9]} 60. b5
{[%clk 0:00:34.5]} 60... axb5 {[%clk 0:00:20.3]} 61. a6 {[%clk 0:00:33.5]} 61...
b4 {[%clk 0:00:19.3]} 62. a7 {[%clk 0:00:34.7]} 1-0

[Event "*** Monthly 3|2 Blitz Masters"]
[Site "Chess.com"]
[Date "2014.10.28"]
[Round "5"]
[White "THORK"]
[Black "Time2Pretend"]
[Result "1-0"]
[WhiteElo "2176"]
[BlackElo "2314"]
[TimeControl "180+2"]
[EndTime "12:54:07 PDT"]
[Termination "THORK won by resignation"]

1. e4 {[%clk 0:03:00]} 1... e5 {[%clk 0:02:55.6]} 2. Bc4 {[%clk 0:02:53.5]} 2...
Nf6 {[%clk 0:02:55.5]} 3. d3 {[%clk 0:02:54.3]} 3... Nc6 {[%clk 0:02:56.1]} 4.
Nc3 {[%clk 0:02:55.3]} 4... Na5 {[%clk 0:02:56.1]} 5. Nge2 {[%clk 0:02:54.2]}
5... d6 {[%clk 0:02:55.8]} 6. O-O {[%clk 0:02:54.8]} 6... Be7 {[%clk 0:02:56.7]}
7. Bb3 {[%clk 0:02:55.2]} 7... O-O {[%clk 0:02:55.8]} 8. f4 {[%clk 0:02:55.6]}
8... c6 {[%clk 0:02:49.7]} 9. fxe5 {[%clk 0:02:53.1]} 9... dxe5 {[%clk
0:02:50.4]} 10. h3 {[%clk 0:02:54.5]} 10... Nxb3 {[%clk 0:02:45.6]} 11. axb3
{[%clk 0:02:55.3]} 11... Be6 {[%clk 0:02:46.6]} 12. Kh2 {[%clk 0:02:51.3]} 12...
h6 {[%clk 0:02:41.9]} 13. Ng3 {[%clk 0:02:50.9]} 13... Re8 {[%clk 0:02:37.7]}
14. Nf5 {[%clk 0:02:47.5]} 14... Bf8 {[%clk 0:02:38.6]} 15. Qf3 {[%clk
0:02:45.3]} 15... h5 {[%clk 0:02:36.4]} 16. Nh6+ {[%clk 0:02:44.1]} 16... Kh7
{[%clk 0:02:36.8]} 17. Nf5 {[%clk 0:02:44.4]} 17... g6 {[%clk 0:02:35.1]} 18.
Ng3 {[%clk 0:02:37.8]} 18... Bg7 {[%clk 0:02:35.1]} 19. Bg5 {[%clk 0:02:38.7]}
19... Ng4+ {[%clk 0:02:34.1]} 20. Qxg4 {[%clk 0:02:35.3]} 20... hxg4 {[%clk
0:02:33.2]} 21. Bxd8 {[%clk 0:02:36.2]} 21... Rexd8 {[%clk 0:02:33.5]} 22. h4
{[%clk 0:02:31]} 22... Bh6 {[%clk 0:02:31.1]} 23. Nge2 {[%clk 0:02:31.8]} 23...
Kg7 {[%clk 0:02:30.8]} 24. g3 {[%clk 0:02:32.9]} 24... Be3 {[%clk 0:02:31.1]}
25. Kg2 {[%clk 0:02:33.3]} 25... f5 {[%clk 0:02:30]} 26. Rh1 {[%clk 0:02:29.5]}
26... f4 {[%clk 0:02:28.4]} 27. gxf4 {[%clk 0:02:20]} 27... exf4 {[%clk
0:02:29.1]} 28. Kf1 {[%clk 0:02:12.6]} 28... f3 {[%clk 0:02:28.4]} 29. Ng3
{[%clk 0:02:13.2]} 29... Rf8 {[%clk 0:02:24.2]} 30. Nd1 {[%clk 0:02:13.9]} 30...
Bd4 {[%clk 0:02:22.6]} 31. c3 {[%clk 0:02:15]} 31... Be5 {[%clk 0:02:23.6]} 32.
Kf2 {[%clk 0:02:16.4]} 32... Bxb3 {[%clk 0:02:24.8]} 33. Ne3 {[%clk 0:02:16.2]}
33... Rad8 {[%clk 0:02:23.1]} 34. d4 {[%clk 0:02:17]} 34... Bb8 {[%clk
0:02:23.3]} 35. e5 {[%clk 0:02:10.6]} 35... c5 {[%clk 0:02:23.8]} 36. Rad1
{[%clk 0:01:56.9]} 36... Bxd1 {[%clk 0:02:23.8]} 37. Rxd1 {[%clk 0:01:58.1]}
37... cxd4 {[%clk 0:02:22.7]} 38. cxd4 {[%clk 0:01:59.4]} 38... a6 {[%clk
0:02:23.7]} 39. Nxg4 {[%clk 0:01:57.5]} 39... Ba7 {[%clk 0:02:23.2]} 40. e6
{[%clk 0:01:26.5]} 40... Bxd4+ {[%clk 0:02:23]} 41. Kf1 {[%clk 0:01:27.1]} 41...
Rfe8 {[%clk 0:02:22.8]} 42. h5 {[%clk 0:01:18]} 42... Rxe6 {[%clk 0:02:19.9]}
43. h6+ {[%clk 0:01:16.9]} 43... Kh7 {[%clk 0:02:17.7]} 44. Rd3 {[%clk
0:01:16.9]} 44... Bb6 {[%clk 0:02:05.4]} 45. Rxf3 {[%clk 0:01:16.9]} 45... Re7
{[%clk 0:02:00.7]} 46. Kg2 {[%clk 0:01:15]} 46... Rd2+ {[%clk 0:02:00.5]} 47.
Kh3 {[%clk 0:01:16.2]} 47... Rxb2 {[%clk 0:02:00.6]} 48. Ne4 {[%clk 0:01:06.3]}
48... Bd4 {[%clk 0:01:57.6]} 49. Ng5+ {[%clk 0:01:06.3]} 49... Kg8 {[%clk
0:01:54.9]} 50. Rd3 {[%clk 0:01:00.5]} 50... Rb4 {[%clk 0:01:50.5]} 51. Kg3
{[%clk 0:00:45.7]} 51... Rb5 {[%clk 0:01:15.5]} 52. h7+ {[%clk 0:00:38.8]} 52...
Kh8 {[%clk 0:01:10.3]} 53. Kh4 {[%clk 0:00:33.8]} 53... Rd5 {[%clk 0:01:02.2]}
54. Rf3 {[%clk 0:00:34]} 54... Rxh7+ {[%clk 0:01:01.8]} 55. Nxh7 {[%clk
0:00:31.7]} 55... Kxh7 {[%clk 0:01:03.1]} 56. Rf7+ {[%clk 0:00:32.9]} 56... Bg7
{[%clk 0:00:56.1]} 57. Nf6+ {[%clk 0:00:30]} 57... Kh6 {[%clk 0:00:56.9]} 58.
Nxd5 {[%clk 0:00:31.3]} 58... b5 {[%clk 0:00:47.8]} 59. Ra7 {[%clk 0:00:29.5]}
59... Bd4 {[%clk 0:00:48.6]} 60. Rxa6 {[%clk 0:00:30.3]} 60... Bf2+ {[%clk
0:00:38.2]} 61. Kg4 {[%clk 0:00:31.1]} 61... Be1 {[%clk 0:00:39.6]} 62. Nf4
{[%clk 0:00:30.1]} 62... b4 {[%clk 0:00:39.9]} 63. Rxg6+ {[%clk 0:00:31.2]}
63... Kh7 {[%clk 0:00:41.3]} 64. Rb6 {[%clk 0:00:32.8]} 64... Kg7 {[%clk
0:00:41.6]} 65. Kf5 {[%clk 0:00:34]} 65... Bc3 {[%clk 0:00:42.9]} 66. Nh5+
{[%clk 0:00:34.4]} 66... Kf7 {[%clk 0:00:43.8]} 67. Rb7+ {[%clk 0:00:35.2]}
67... Ke8 {[%clk 0:00:44.5]} 68. Nf6+ {[%clk 0:00:36.5]} 68... Kd8 {[%clk
0:00:45.4]} 69. Nd5 {[%clk 0:00:37.9]} 69... Kc8 {[%clk 0:00:45.5]} 70. Rh7
{[%clk 0:00:35.7]} 70... Bd2 {[%clk 0:00:42.1]} 71. Rh2 {[%clk 0:00:36.6]} 71...
Be1 {[%clk 0:00:42.2]} 72. Re2 {[%clk 0:00:37.7]} 72... Bc3 {[%clk 0:00:41.5]}
73. Nxc3 {[%clk 0:00:38.4]} 73... bxc3 {[%clk 0:00:41.7]} 74. Rc2 {[%clk
0:00:39.9]} 74... Kd7 {[%clk 0:00:43.2]} 75. Rxc3 {[%clk 0:00:41.3]} 75... Kd6
{[%clk 0:00:44.8]} 76. Rd3+ {[%clk 0:00:42.7]} 76... Kc5 {[%clk 0:00:45.4]} 1-0

[Event "*** Monthly 3|2 Blitz Masters"]
[Site "Chess.com"]
[Date "2014.10.28"]
[Round "5"]
[White "Th3ChessViking"]
[Black "wannabe2700"]
[Result "1-0"]
[WhiteElo "2387"]
[BlackElo "2287"]
[TimeControl "180+2"]
[EndTime "12:54:36 PDT"]
[Termination "Th3ChessViking won by checkmate"]

1. d4 {[%clk 0:02:59.6]} 1... e6 {[%clk 0:02:59.3]} 2. Nf3 {[%clk 0:03:00.3]}
2... f5 {[%clk 0:03:00.1]} 3. Bf4 {[%clk 0:03:00.2]} 3... Nf6 {[%clk 0:03:01.1]}
4. e3 {[%clk 0:03:01.6]} 4... Be7 {[%clk 0:03:00.2]} 5. Nbd2 {[%clk 0:03:02]}
5... O-O {[%clk 0:03:00.1]} 6. Bc4 {[%clk 0:03:03.3]} 6... b6 {[%clk 0:02:58.7]}
7. c3 {[%clk 0:03:00.2]} 7... Bb7 {[%clk 0:02:59.8]} 8. Qc2 {[%clk 0:03:01.4]}
8... Ne4 {[%clk 0:02:59.8]} 9. h3 {[%clk 0:02:58.2]} 9... d6 {[%clk 0:02:59.8]}
10. Bxe6+ {[%clk 0:02:53.7]} 10... Kh8 {[%clk 0:03:01]} 11. Bxf5 {[%clk
0:02:42.2]} 11... Nxd2 {[%clk 0:02:31.8]} 12. Kxd2 {[%clk 0:02:41.9]} 12... g6
{[%clk 0:02:23.5]} 13. Bd3 {[%clk 0:02:23.1]} 13... Nd7 {[%clk 0:02:20.5]} 14.
h4 {[%clk 0:02:17.5]} 14... Nf6 {[%clk 0:02:20.5]} 15. Ng5 {[%clk 0:02:15.1]}
15... Qd7 {[%clk 0:02:20.8]} 16. f3 {[%clk 0:02:10.9]} 16... Nh5 {[%clk
0:02:20.8]} 17. Bh2 {[%clk 0:02:05.6]} 17... Ng7 {[%clk 0:02:09.2]} 18. e4
{[%clk 0:01:45.3]} 18... c5 {[%clk 0:02:08.9]} 19. d5 {[%clk 0:01:41.1]} 19...
b5 {[%clk 0:02:02]} 20. c4 {[%clk 0:01:40.6]} 20... bxc4 {[%clk 0:01:59]} 21.
Bxc4 {[%clk 0:01:39.4]} 21... Bxg5+ {[%clk 0:01:39]} 22. hxg5 {[%clk 0:01:39.5]}
22... Qe7 {[%clk 0:01:40.4]} 23. f4 {[%clk 0:01:34.1]} 23... Rab8 {[%clk
0:01:35.4]} 24. Rae1 {[%clk 0:01:32.5]} 24... Bc8 {[%clk 0:01:34.4]} 25. Qc3
{[%clk 0:01:31.6]} 25... Kg8 {[%clk 0:01:30.3]} 26. e5 {[%clk 0:01:23.3]} 26...
Nf5 {[%clk 0:01:30]} 27. e6 {[%clk 0:01:12.6]} 27... Nd4 {[%clk 0:01:29.9]} 28.
g4 {[%clk 0:01:09.7]} 28... Rb4 {[%clk 0:01:19.7]} 29. Ref1 {[%clk 0:01:03.3]}
29... Qd8 {[%clk 0:01:12.4]} 30. Bg1 {[%clk 0:00:59.7]} 30... Qb6 {[%clk
0:01:11.7]} 31. b3 {[%clk 0:00:58.8]} 31... Ba6 {[%clk 0:01:07.6]} 32. Bxd4
{[%clk 0:00:47.2]} 32... cxd4 {[%clk 0:01:09.5]} 33. Qh3 {[%clk 0:00:43.2]}
33... h5 {[%clk 0:01:02.5]} 34. gxh5 {[%clk 0:00:36.1]} 34... Rxc4 {[%clk
0:01:03.2]} 35. hxg6 {[%clk 0:00:28.9]} 35... Qb4+ {[%clk 0:00:46.4]} 36. Kd1
{[%clk 0:00:29.7]} 36... Rc1+ {[%clk 0:00:40.6]} 37. Kxc1 {[%clk 0:00:28.7]}
37... Qc3+ {[%clk 0:00:33.4]} 38. Qxc3 {[%clk 0:00:26.8]} 38... dxc3 {[%clk
0:00:35.3]} 39. Rf3 {[%clk 0:00:27.8]} 39... Be2 {[%clk 0:00:33.3]} 40. Rfh3
{[%clk 0:00:23]} 40... Rxf4 {[%clk 0:00:34]} 41. e7 {[%clk 0:00:24.3]} 41... Re4
{[%clk 0:00:34.6]} 42. Rh8+ {[%clk 0:00:22.2]} 42... Kg7 {[%clk 0:00:35.8]} 43.
e8=Q {[%clk 0:00:23.6]} 43... Rxe8 {[%clk 0:00:35]} 44. Rxe8 {[%clk 0:00:25.5]}
44... Bf3 {[%clk 0:00:36.6]} 45. Rh3 {[%clk 0:00:24.2]} 45... Bxd5 {[%clk
0:00:37.6]} 46. Rxc3 {[%clk 0:00:25.5]} 46... Kxg6 {[%clk 0:00:38.9]} 47. Rg3
{[%clk 0:00:24.9]} 47... Bf7 {[%clk 0:00:38.6]} 48. Re7 {[%clk 0:00:25.7]} 48...
d5 {[%clk 0:00:40.5]} 49. Rxa7 {[%clk 0:00:27.1]} 49... d4 {[%clk 0:00:41.1]}
50. Kd2 {[%clk 0:00:29]} 50... Be6 {[%clk 0:00:41.7]} 51. Rg1 {[%clk 0:00:30.9]}
51... Bf5 {[%clk 0:00:42.8]} 52. b4 {[%clk 0:00:32.8]} 52... d3 {[%clk
0:00:44.5]} 53. a3 {[%clk 0:00:34.7]} 53... Be4 {[%clk 0:00:46.3]} 54. a4 {[%clk
0:00:36.6]} 54... Kh5 {[%clk 0:00:47.5]} 55. a5 {[%clk 0:00:38.5]} 55... Kg6
{[%clk 0:00:49.1]} 56. Rc7 {[%clk 0:00:39.5]} 56... Kf5 {[%clk 0:00:50.4]} 57.
Rc5+ {[%clk 0:00:41.4]} 57... Kf4 {[%clk 0:00:51.6]} 58. b5 {[%clk 0:00:42.4]}
58... Kf3 {[%clk 0:00:53]} 59. b6 {[%clk 0:00:43.8]} 59... Kf4 {[%clk
0:00:54.9]} 60. g6 {[%clk 0:00:43.4]} 60... Kf3 {[%clk 0:00:56.8]} 61. g7 {[%clk
0:00:44.1]} 61... Kf2 {[%clk 0:00:58.7]} 62. Rgg5 {[%clk 0:00:45]} 62... Bg2
{[%clk 0:01:00.6]} 63. a6 {[%clk 0:00:45.7]} 63... Bf3 {[%clk 0:01:02.5]} 64. a7
{[%clk 0:00:47.6]} 64... Bg2 {[%clk 0:01:04.4]} 65. g8=N {[%clk 0:00:40.3]}
65... Bf3 {[%clk 0:01:06.3]} 66. Kxd3 {[%clk 0:00:39.9]} 66... Bg2 {[%clk
0:01:08.2]} 67. Kd4 {[%clk 0:00:41.8]} 67... Bf3 {[%clk 0:01:10.1]} 68. Ke5
{[%clk 0:00:43.7]} 68... Bg2 {[%clk 0:01:12]} 69. Kd6 {[%clk 0:00:45.6]} 69...
Bf3 {[%clk 0:01:13.9]} 70. Kc7 {[%clk 0:00:47.5]} 70... Bg2 {[%clk 0:01:15.8]}
71. Kb8 {[%clk 0:00:49.4]} 71... Bf3 {[%clk 0:01:17.2]} 72. Kc8 {[%clk
0:00:51.3]} 72... Bg2 {[%clk 0:01:19.1]} 73. Kd8 {[%clk 0:00:53.2]} 73... Bf3
{[%clk 0:01:21]} 74. Ke7 {[%clk 0:00:55.1]} 74... Bg2 {[%clk 0:01:22.5]} 75. Kf8
{[%clk 0:00:57]} 75... Bf3 {[%clk 0:01:24.4]} 76. Kg7 {[%clk 0:00:58.9]} 76...
Bg2 {[%clk 0:01:26.3]} 77. Kh8 {[%clk 0:01:00.8]} 77... Bf3 {[%clk 0:01:28.2]}
78. Rg7 {[%clk 0:01:02.7]} 78... Bg2 {[%clk 0:01:30.1]} 79. Rcc7 {[%clk
0:01:04.6]} 79... Bf3 {[%clk 0:01:32]} 80. b7 {[%clk 0:01:06.5]} 80... Bg2
{[%clk 0:01:33.8]} 81. b8=B {[%clk 0:01:08.4]} 81... Bf3 {[%clk 0:01:35.7]} 82.
a8=Q {[%clk 0:01:08]} 82... Bg2 {[%clk 0:01:37.6]} 83. Qf3+ {[%clk 0:01:08.8]}
83... Bxf3 {[%clk 0:01:39.5]} 84. Rce7 {[%clk 0:00:51.9]} 84... Bg2 {[%clk
0:01:41.4]} 85. Rg5 {[%clk 0:00:52.4]} 85... Bf3 {[%clk 0:01:43.2]} 86. Ree5
{[%clk 0:00:54.3]} 86... Bg2 {[%clk 0:01:45.1]} 87. Kg7 {[%clk 0:00:56.2]} 87...
Bf3 {[%clk 0:01:47]} 88. Kf6 {[%clk 0:00:57.8]} 88... Bg2 {[%clk 0:01:48.9]} 89.
Re7 {[%clk 0:00:56.8]} 89... Bf3 {[%clk 0:01:50.8]} 90. Rg3 {[%clk 0:00:58]}
90... Bg2 {[%clk 0:01:52.7]} 91. Kg5 {[%clk 0:00:59.3]} 91... Bf3 {[%clk
0:01:54.2]} 92. Kf4 {[%clk 0:01:00.7]} 92... Bg2 {[%clk 0:01:56.1]} 93. Ree3
{[%clk 0:01:01.8]} 93... Bf3 {[%clk 0:01:58]} 94. Nf6 {[%clk 0:01:03.4]} 94...
Bg2 {[%clk 0:01:59.9]} 95. Nh7 {[%clk 0:01:04.7]} 95... Bf3 {[%clk 0:02:01.8]}
96. Ng5 {[%clk 0:01:06.3]} 96... Bg2 {[%clk 0:02:03.7]} 97. Be5 {[%clk
0:01:07.5]} 97... Bf1 {[%clk 0:02:05.1]} 98. Ne4# {[%clk 0:01:05.5]} 1-0

[Event "*** Monthly 3|2 Blitz Masters"]
[Site "Chess.com"]
[Date "2014.10.28"]
[Round "6"]
[White "ruzomberok"]
[Black "brauliocuarta"]
[Result "1-0"]
[WhiteElo "2219"]
[BlackElo "1965"]
[TimeControl "180+2"]
[EndTime "12:59:37 PDT"]
[Termination "ruzomberok won by resignation"]

1. d4 {[%clk 0:03:00]} 1... Nf6 {[%clk 0:02:58]} 2. Bg5 {[%clk 0:03:00.6]} 2...
Ne4 {[%clk 0:02:57.9]} 3. h4 {[%clk 0:03:01.4]} 3... c5 {[%clk 0:02:50.6]} 4. d5
{[%clk 0:03:02.2]} 4... Qb6 {[%clk 0:02:45]} 5. Nd2 {[%clk 0:03:03]} 5... Nxd2
{[%clk 0:02:11.2]} 6. Bxd2 {[%clk 0:03:02.6]} 6... Qxb2 {[%clk 0:02:09.5]} 7.
Nf3 {[%clk 0:03:03.5]} 7... d6 {[%clk 0:02:00.2]} 8. e4 {[%clk 0:03:02.8]} 8...
g6 {[%clk 0:01:53.6]} 9. Rb1 {[%clk 0:03:02.2]} 9... Qxa2 {[%clk 0:01:50.7]} 10.
Bc3 {[%clk 0:03:01.9]} 10... f6 {[%clk 0:01:50.4]} 11. Bb5+ {[%clk 0:03:00.4]}
11... Nd7 {[%clk 0:01:33.1]} 12. Ra1 {[%clk 0:02:58.2]} 12... Qxa1 {[%clk
0:01:06.7]} 13. Bxa1 {[%clk 0:02:55]} 13... Bg7 {[%clk 0:01:07.6]} 14. h5 {[%clk
0:02:50.5]} 14... Kf7 {[%clk 0:01:02.9]} 15. hxg6+ {[%clk 0:02:50]} 15... hxg6
{[%clk 0:01:04.5]} 16. Rxh8 {[%clk 0:02:51.1]} 16... Bxh8 {[%clk 0:01:06]} 17.
Ng5+ {[%clk 0:02:52.2]} 17... fxg5 {[%clk 0:01:05.1]} 18. Bxh8 {[%clk
0:02:52.7]} 18... a6 {[%clk 0:01:06.4]} 19. Be2 {[%clk 0:02:48.4]} 19... b5
{[%clk 0:01:03.2]} 20. Bg4 {[%clk 0:02:48.6]} 20... Nb6 {[%clk 0:00:59.4]} 21.
Qf3+ {[%clk 0:02:34.2]} 21... Kg8 {[%clk 0:00:59.3]} 22. Ba1 {[%clk 0:02:21.9]}
22... Bxg4 {[%clk 0:00:49]} 23. Qxg4 {[%clk 0:02:23.8]} 23... Rf8 {[%clk
0:00:47.3]} 24. Qxg5 {[%clk 0:02:22]} 24... Kh7 {[%clk 0:00:45.6]} 25. Qxe7+
{[%clk 0:02:22.8]} 1-0

[Event "*** Monthly 3|2 Blitz Masters"]
[Site "Chess.com"]
[Date "2014.10.28"]
[Round "6"]
[White "oggy1984"]
[Black "DanielRensch"]
[Result "0-1"]
[WhiteElo "2217"]
[BlackElo "2342"]
[TimeControl "180+2"]
[EndTime "13:00:23 PDT"]
[Termination "DanielRensch won by checkmate"]

1. e4 {[%clk 0:03:00]} 1... c5 {[%clk 0:02:57.6]} 2. Ne2 {[%clk 0:03:00]} 2...
Nc6 {[%clk 0:02:58]} 3. Nbc3 {[%clk 0:02:59.9]} 3... g6 {[%clk 0:02:58.6]} 4. g3
{[%clk 0:03:01.8]} 4... Bg7 {[%clk 0:02:59.4]} 5. Bg2 {[%clk 0:03:03.7]} 5... d6
{[%clk 0:02:59.4]} 6. O-O {[%clk 0:03:05.6]} 6... e6 {[%clk 0:03:00.6]} 7. h3
{[%clk 0:03:07.5]} 7... Nge7 {[%clk 0:03:01.5]} 8. d3 {[%clk 0:03:09.4]} 8...
O-O {[%clk 0:03:03.4]} 9. f4 {[%clk 0:03:11.3]} 9... Rb8 {[%clk 0:03:04.7]} 10.
g4 {[%clk 0:03:09.6]} 10... f5 {[%clk 0:03:01.6]} 11. exf5 {[%clk 0:03:01.3]}
11... exf5 {[%clk 0:03:00.6]} 12. Be3 {[%clk 0:03:01.7]} 12... fxg4 {[%clk
0:03:00.8]} 13. hxg4 {[%clk 0:02:59.2]} 13... Bxg4 {[%clk 0:03:02.7]} 14. Qd2
{[%clk 0:02:57.4]} 14... Qd7 {[%clk 0:02:56.5]} 15. Ng3 {[%clk 0:02:57.1]} 15...
Rbe8 {[%clk 0:02:56.5]} 16. Nd5 {[%clk 0:02:44.3]} 16... Nxd5 {[%clk 0:02:56.1]}
17. Bxd5+ {[%clk 0:02:44.5]} 17... Kh8 {[%clk 0:02:57.9]} 18. c3 {[%clk
0:02:43.5]} 18... Ne7 {[%clk 0:02:56]} 19. Bh1 {[%clk 0:02:39]} 19... b6 {[%clk
0:02:56.8]} 20. Ne4 {[%clk 0:02:37.4]} 20... d5 {[%clk 0:02:48]} 21. Ng5 {[%clk
0:02:35.1]} 21... h6 {[%clk 0:02:47.3]} 22. Qh2 {[%clk 0:01:54.1]} 22... d4
{[%clk 0:02:46.3]} 23. cxd4 {[%clk 0:01:51]} 23... Nf5 {[%clk 0:02:46.8]} 24.
Bf2 {[%clk 0:01:50.1]} 24... Bxd4 {[%clk 0:02:43.4]} 25. Rae1 {[%clk 0:01:44]}
25... Bxf2+ {[%clk 0:02:40.2]} 26. Kxf2 {[%clk 0:01:29.4]} 26... Qxd3 {[%clk
0:02:39.8]} 27. Nf7+ {[%clk 0:01:19.7]} 27... Kg7 {[%clk 0:02:29.1]} 28. Rxe8
{[%clk 0:01:19.5]} 28... Rxe8 {[%clk 0:02:17.9]} 29. Ne5 {[%clk 0:01:20.2]}
29... Qd4+ {[%clk 0:02:11.8]} 30. Ke1 {[%clk 0:01:10.8]} 30... Ne3 {[%clk
0:02:10.8]} 31. Rg1 {[%clk 0:00:59.4]} 31... Qd1+ {[%clk 0:02:04.4]} 32. Kf2
{[%clk 0:01:00]} 32... Qe2+ {[%clk 0:02:05.4]} 33. Kg3 {[%clk 0:00:58.8]} 33...
Nf5# {[%clk 0:02:06.9]} 0-1

[Event "*** Monthly 3|2 Blitz Masters"]
[Site "Chess.com"]
[Date "2014.10.28"]
[Round "6"]
[White "MichiganEagle"]
[Black "ilmago"]
[Result "1-0"]
[WhiteElo "2286"]
[BlackElo "1764"]
[TimeControl "180+2"]
[EndTime "13:02:51 PDT"]
[Termination "MichiganEagle won on time"]

1. d4 {[%clk 0:03:00]} 1... Nf6 {[%clk 0:02:58.1]} 2. Nf3 {[%clk 0:03:01]} 2...
g6 {[%clk 0:02:58.9]} 3. g3 {[%clk 0:03:02.2]} 3... Bg7 {[%clk 0:02:59.9]} 4.
Bg2 {[%clk 0:03:04.1]} 4... O-O {[%clk 0:03:01.1]} 5. O-O {[%clk 0:03:05.7]}
5... d6 {[%clk 0:03:02]} 6. a4 {[%clk 0:03:05.4]} 6... Nbd7 {[%clk 0:03:00]} 7.
a5 {[%clk 0:03:03.6]} 7... e5 {[%clk 0:02:59.9]} 8. c4 {[%clk 0:03:03.4]} 8...
exd4 {[%clk 0:03:00.1]} 9. Nxd4 {[%clk 0:03:04.2]} 9... a6 {[%clk 0:02:58.1]}
10. Nc3 {[%clk 0:03:04.2]} 10... Re8 {[%clk 0:02:58.5]} 11. e4 {[%clk
0:02:39.4]} 11... Nc5 {[%clk 0:02:54.1]} 12. h3 {[%clk 0:02:38.7]} 12... Ncxe4
{[%clk 0:02:47]} 13. Nd5 {[%clk 0:02:33.9]} 13... Nxd5 {[%clk 0:02:44.4]} 14.
cxd5 {[%clk 0:02:35.8]} 14... Qf6 {[%clk 0:02:38.8]} 15. Ne2 {[%clk 0:02:24.3]}
15... Nc5 {[%clk 0:02:30.2]} 16. Ra3 {[%clk 0:02:20.3]} 16... Bf5 {[%clk
0:02:29.3]} 17. b4 {[%clk 0:01:55.5]} 17... Nd7 {[%clk 0:02:18.6]} 18. Be3
{[%clk 0:01:48.4]} 18... Ne5 {[%clk 0:02:12.1]} 19. Rc3 {[%clk 0:01:44.6]} 19...
Rac8 {[%clk 0:02:03.4]} 20. Nd4 {[%clk 0:01:44.8]} 20... Bd7 {[%clk 0:01:54.2]}
21. Qc1 {[%clk 0:01:42.9]} 21... c5 {[%clk 0:01:07.8]} 22. bxc5 {[%clk
0:01:26.3]} 22... dxc5 {[%clk 0:01:05.1]} 23. Bg5 {[%clk 0:01:11.4]} 23... Nf3+
{[%clk 0:00:53.4]} 24. Rxf3 {[%clk 0:01:11.1]} 24... Qxd4 {[%clk 0:00:52]} 25.
Rd1 {[%clk 0:01:11.8]} 25... Qe5 {[%clk 0:00:47.7]} 26. Bf4 {[%clk 0:01:04]}
26... Qe4 {[%clk 0:00:40.6]} 27. Rb3 {[%clk 0:00:58.1]} 27... Qe2 {[%clk
0:00:24.1]} 28. Bf3 {[%clk 0:00:46.7]} 28... Qa2 {[%clk 0:00:20.8]} 29. Ra3
{[%clk 0:00:41.2]} 29... Qb2 {[%clk 0:00:16.9]} 30. Qxb2 {[%clk 0:00:42.4]}
30... Bxb2 {[%clk 0:00:16.8]} 31. Ra2 {[%clk 0:00:40.7]} 31... Bd4 {[%clk
0:00:16.3]} 32. d6 {[%clk 0:00:41.2]} 32... Rb8 {[%clk 0:00:12.1]} 33. Rb1
{[%clk 0:00:38.3]} 1-0